fUST/lending_fUST_20251212
["ID","MTS","AMOUNT","RATE_DAILY","PERIOD"]
[398262917,1765473117296,-1602.59,0.0001589,2]
[398262918,1765473117310,-526.42,0.0001589,2]
[398262919,1765473117330,-1033.03,0.0001589,2]
[398262920,1765473117345,-500.0,0.0001589,2]
[398262921,1765473117362,-500.0,0.0001589,2]
[398262922,1765473117378,-1427.04,0.0001589,2]
[398262923,1765473117394,-1182.82,0.0001589,2]
[398262924,1765473117409,-503.81,0.0001589,2]
[398262925,1765473117425,-2357.55,0.0001589,2]
[398262926,1765473117440,-2241.56,0.0001589,2]
[398262927,1765473117455,-746.51,0.0001589,2]
[398262928,1765473117470,-502.94,0.0001589,2]
[398262929,1765473117486,-2477.03,0.0001589,2]
[398262930,1765473117501,-16159.61,0.0001589,2]
[398262931,1765473117516,-500.0,0.0001589,2]
[398262932,1765473117532,-1020.46,0.0001589,2]
[398262933,1765473117548,-500.0,0.0001589,2]
[398262934,1765473117563,-500.0,0.0001589,2]
[398262935,1765473117578,-929.81,0.0001589,2]
[398262936,1765473117593,-9833.23,0.0001589,2]
[398262937,1765473117608,-1802.15,0.0001589,2]
[398262938,1765473117623,-6470.75,0.0001589,2]
[398262939,1765473117638,-946.88,0.0001589,2]
[398262940,1765473117654,-997.71,0.0001589,2]
[398262941,1765473117669,-500.0,0.0001589,2]
[398262942,1765473117688,-500.0,0.0001589,2]
[398262943,1765473117704,-500.0,0.0001589,2]
[398262944,1765473117720,-711.68,0.0001589,2]
[398262945,1765473117735,-975.53,0.0001589,2]
[398262946,1765473117751,-500.0,0.0001589,2]
[398262947,1765473117774,-2355.47,0.0001589,2]
[398262948,1765473117789,-6461.74,0.0001589,2]
[398262949,1765473117804,-705.81,0.0001589,2]
[398262950,1765473117820,-1840.07,0.0001589,2]
[398262951,1765473117835,-1427.0,0.0001589,2]
[398262952,1765473117850,-3038.1,0.0001589,2]
[398262953,1765473117865,-500.0,0.0001589,2]
[398262954,1765473117880,-3082.36,0.0001589,2]
[398262955,1765473117894,-1002.42,0.0001589,2]
[398262956,1765473117909,-500.0,0.0001589,2]
[398262957,1765473117924,-500.0,0.0001589,2]
[398262958,1765473117938,-500.0,0.0001589,2]
[398262959,1765473117954,-2274.69,0.0001589,2]
[398262960,1765473117969,-500.0,0.0001589,2]
[398262961,1765473117988,-2058.31,0.0001589,2]
[398262962,1765473118003,-500.0,0.0001589,2]
[398262963,1765473118019,-543.43,0.0001589,2]
[398262964,1765473118034,-2874.84,0.0001589,2]
[398262965,1765473118048,-3909.79,0.0001589,2]
[398262966,1765473118064,-1626.08,0.0001589,2]
[398262967,1765473118080,-1213.67,0.0001589,2]
[398262968,1765473118095,-500.0,0.0001589,2]
[398262969,1765473118110,-1495.1,0.0001589,2]
[398262970,1765473118125,-2147.35,0.0001589,2]
[398262971,1765473118140,-2767.88,0.0001589,2]
[398262972,1765473118153,-9868.9,0.0001589,2]
[398262973,1765473118168,-737.71,0.0001589,2]
[398262974,1765473118182,-2466.81,0.0001589,2]
[398262975,1765473118196,-2201.84,0.0001589,2]
[398262976,1765473118211,-508.55,0.0001589,2]
[398262977,1765473118225,-500.0,0.0001589,2]
[398262978,1765473118241,-642.28,0.0001589,2]
[398262979,1765473118256,-868.4,0.0001589,2]
[398262980,1765473118271,-1593.22,0.0001589,2]
[398262981,1765473118286,-500.0,0.0001589,2]
[398262982,1765473118299,-513.64,0.0001589,2]
[398262983,1765473118314,-1703.23,0.0001589,2]
[398262984,1765473118329,-500.0,0.0001589,2]
[398262985,1765473118344,-598.2,0.0001589,2]
[398262986,1765473118359,-3702.43,0.0001589,2]
[398262987,1765473118374,-3797.02,0.0001589,2]
[398262988,1765473118389,-1310.35,0.0001589,2]
[398262989,1765473118404,-500.0,0.0001589,2]
[398262990,1765473118420,-250.0000008,0.0001589,2]
[398262991,1765473118435,-1964.83,0.0001589,2]
[398262992,1765473118450,-1191.2,0.0001589,2]
[398262993,1765473118469,-2176.01,0.0001589,2]
[398262994,1765473118484,-1848.59,0.0001589,2]
[398262995,1765473118499,-3062.71,0.0001589,2]
[398262996,1765473118513,-2486.75,0.0001589,2]
[398262997,1765473118532,-1358.97,0.0001589,2]
[398262998,1765473118547,-1663.27,0.0001589,2]
[398262999,1765473118561,-1044.05,0.0001589,2]
[398263000,1765473118576,-2993.28,0.0001589,2]
[398263001,1765473118596,-645.89,0.0001589,2]
[398263002,1765473118611,-900.08,0.0001589,2]
[398263003,1765473118625,-546.01,0.0001589,2]
[398263004,1765473118640,-500.0,0.0001589,2]
[398263005,1765473118655,-40715.35,0.0001589,2]
[398263006,1765473118670,-500.0,0.0001589,2]
[398263007,1765473118684,-3514.28,0.0001589,2]
[398263008,1765473118699,-1320.84,0.0001589,2]
[398263009,1765473118713,-1458.76,0.0001589,2]
[398263010,1765473118728,-1549.69,0.0001589,2]
[398263011,1765473118742,-500.0,0.0001589,2]
[398263012,1765473118756,-7942.46,0.0001589,2]
[398263013,1765473118771,-3763.94,0.0001589,2]
[398263014,1765473118786,-10354.69,0.0001589,2]
[398263015,1765473118800,-937.22,0.0001589,2]
[398263016,1765473118814,-500.0,0.0001589,2]
[398263017,1765473118828,-500.0,0.0001589,2]
[398263018,1765473118842,-9226.2,0.0001589,2]
[398263019,1765473118858,-783.44,0.0001589,2]
[398263020,1765473118873,-500.0,0.0001589,2]
[398263021,1765473118887,-2000.0,0.0001589,3]
[398263022,1765473118901,-2500.0,0.0001589,2]
[398263023,1765473118916,-2000.0,0.00015892,3]
[398263024,1765473118931,-2000.0,0.00015892,3]
[398263025,1765473118945,-2000.0,0.00015892,3]
[398263026,1765473118959,-2000.0,0.00015899,3]
[398263027,1765473118974,-2000.0,0.00015901,3]
[398263028,1765473118991,-2000.0,0.00015901,3]
[398263029,1765473119005,-2000.0,0.00015901,3]
[398263030,1765473119020,-2000.0,0.00015908,3]
[398263031,1765473119035,-2000.0,0.0001591,3]
[398263032,1765473119297,-2000.0,0.0001591,3]
[398263033,1765473119324,-2000.0,0.0001591,3]
[398263034,1765473119334,-2000.0,0.00015917,3]
[398263035,1765473119343,-2000.0,0.00015918,3]
[398263036,1765473119353,-2000.0,0.00015919,3]
[398263037,1765473119362,-2000.0,0.00015919,3]
[398263038,1765473119372,-2000.0,0.00015925,3]
[398263039,1765473119382,-2000.0,0.00015927,3]
[398263040,1765473119391,-2000.0,0.00015927,3]
[398263041,1765473119401,-2000.0,0.00015927,3]
[398263042,1765473119410,-2000.0,0.00015934,3]
[398263043,1765473119419,-2000.0,0.00015936,3]
[398263044,1765473119428,-2000.0,0.00015936,3]
[398263045,1765473119438,-2000.0,0.00015936,3]
[398263046,1765473119447,-2000.0,0.00015943,3]
[398263047,1765473119457,-487.3420093,0.00015944,2]
[398263048,1765473119466,-2000.0,0.00015945,3]
[398263049,1765473119476,-2000.0,0.00015945,3]
[398263050,1765473119485,-2000.0,0.00015945,3]
[398263051,1765473119494,-2000.0,0.00015952,3]
[398263052,1765473119504,-2000.0,0.00015954,3]
[398263053,1765473119513,-2000.0,0.00015954,3]
[398263054,1765473119524,-2000.0,0.00015954,3]
[398263055,1765473119534,-663.93287602,0.0001596,2]
[398263056,1765473119544,-2000.0,0.00015961,3]
[398263057,1765473119553,-2000.0,0.00015962,3]
[398263058,1765473119563,-2000.0,0.00015963,3]
[398263059,1765473119572,-2000.0,0.00015963,3]
[398263060,1765473119581,-2000.0,0.00015969,3]
[398263061,1765473119591,-2000.0,0.00015971,3]
[398263062,1765473119600,-2000.0,0.00015971,3]
[398263063,1765473119609,-2000.0,0.00015971,3]
[398263064,1765473119618,-2000.0,0.00015978,3]
[398263065,1765473119627,-2000.0,0.0001598,3]
[398263066,1765473119637,-2000.0,0.0001598,3]
[398263067,1765473119646,-2000.0,0.0001598,3]
[398263068,1765473119655,-2000.0,0.00015987,3]
[398263069,1765473119665,-2000.0,0.00015989,3]
[398263070,1765473119674,-2000.0,0.00015989,3]
[398263071,1765473119683,-295.30641892,0.00016,3]
[398263072,1765473119692,-853.821241,0.00016,2]
[398263073,1765473119702,-3000.0,0.00016012,2]
[398263074,1765473119710,-500.0,0.00016053,2]
[398263075,1765473119719,-226.70099532,0.00016082,3]
[398263076,1765473119729,-200.0,0.00016095,7]
[398263077,1765473119738,-200.0,0.00016095,7]
[398263078,1765473119748,-358.78514359,0.00016095,7]
[398263079,1765473119757,-231.0,0.0001615,2]
[398263080,1765473119766,-1608.54,0.00016164,2]
[398263081,1765473119775,-2302.959549,0.00016164,2]
[398263082,1765473119784,-500.0,0.00016164,2]
[398263083,1765473119793,-500.0,0.00016164,2]
[398263084,1765473119802,-935.65,0.00016164,2]
[398263085,1765473119811,-733.38,0.00016164,2]
[398263086,1765473119820,-585.80224429,0.00016164,2]
[398263087,1765473119830,-500.0,0.00016164,2]
[398263088,1765473119839,-1097.28,0.00016164,2]
[398263089,1765473119849,-500.0,0.00016164,2]
[398263090,1765473119858,-878.81,0.00016164,2]
[398263091,1765473119868,-1446.65,0.00016164,2]
[398263092,1765473119878,-500.0,0.00016164,2]
[398263093,1765473119887,-724.0,0.00016164,2]
[398263094,1765473119897,-672.09,0.00016164,2]
[398263095,1765473119906,-540.2,0.00016164,2]
[398263096,1765473119915,-1325.77,0.00016164,2]
[398263097,1765473119924,-500.0,0.00016164,2]
[398263098,1765473119933,-421.49209207,0.00016164,2]
[398263099,1765473119943,-921.35,0.00016164,2]
[398263100,1765473119952,-790.82,0.00016164,2]
[398263101,1765473119961,-1499.79,0.00016164,2]
[398263102,1765473119970,-500.0,0.00016164,2]
[398263103,1765473119980,-740.19,0.00016164,2]
[398263104,1765473119993,-583.67,0.00016164,2]
[398263105,1765473120003,-933.59,0.00016164,2]
[398263106,1765473120012,-1548.83,0.00016164,2]
[398263107,1765473120023,-647.22,0.00016164,2]
[398263108,1765473120032,-942.57,0.00016164,2]
[398263109,1765473120042,-500.0,0.00016164,2]
[398263110,1765473120051,-2824.48,0.00016164,2]
[398263111,1765473120060,-845.83,0.00016164,2]
[398263112,1765473120070,-500.0,0.00016164,2]
[398263113,1765473120080,-500.0,0.00016164,2]
[398263114,1765473120090,-1883.8,0.00016164,2]
[398263115,1765473120100,-542.07,0.00016164,2]
[398263116,1765473120111,-500.0,0.00016164,2]
[398263117,1765473120121,-500.0,0.00016164,2]
[398263118,1765473120131,-626.92,0.00016164,2]
[398263119,1765473120141,-1839.54,0.00016164,2]
[398263120,1765473120151,-292.45381153,0.00016164,2]
[398263121,1765473120160,-2829.3,0.00016164,2]
[398263122,1765473120170,-512.17,0.00016164,2]
[398263123,1765473120179,-700.08,0.00016164,2]
[398263124,1765473120189,-566.46,0.00016164,2]
[398263125,1765473120199,-500.0,0.00016164,2]
[398263126,1765473120209,-1148.61,0.00016164,2]
[398263127,1765473120219,-863.88,0.00016164,2]
[398263128,1765473120229,-500.0,0.00016164,2]
[398263129,1765473120239,-1156.91,0.00016164,2]
[398263130,1765473120249,-500.0,0.00016164,2]
[398263131,1765473120259,-661.38,0.00016164,2]
[398263132,1765473120270,-500.0,0.00016164,2]
[398263133,1765473120280,-676.34,0.00016164,2]
[398263134,1765473120291,-951.19,0.00016164,2]
[398263135,1765473120301,-500.0,0.00016164,2]
[398263136,1765473120311,-696.06,0.00016164,2]
[398263137,1765473120321,-1268.0,0.00016164,2]
[398263138,1765473120330,-532.67,0.00016164,2]
[398263139,1765473120340,-1479.61,0.00016164,2]
[398263140,1765473120351,-1666.57,0.00016164,2]
[398263141,1765473120361,-664.88,0.00016164,2]
[398263142,1765473120371,-571.38,0.00016164,2]
[398263143,1765473120381,-500.0,0.00016164,2]
[398263144,1765473120391,-500.0,0.00016164,2]
[398263145,1765473120401,-500.0,0.00016164,2]
[398263146,1765473120410,-920.86,0.00016164,2]
[398263147,1765473120419,-500.0,0.00016164,2]
[398263148,1765473120429,-1042.86,0.00016164,2]
[398263149,1765473120439,-500.0,0.00016164,2]
[398263150,1765473120450,-500.0,0.00016164,2]
[398263151,1765473120459,-1029.97,0.00016164,2]
[398263152,1765473120469,-500.0,0.00016164,2]
[398263153,1765473120479,-500.0,0.00016164,2]
[398263154,1765473120488,-1041.62,0.00016164,2]
[398263155,1765473120498,-500.0,0.00016164,2]
[398263156,1765473120508,-1387.16,0.00016164,2]
[398263157,1765473120518,-599.12,0.00016164,2]
[398263158,1765473120528,-913.77,0.00016164,2]
[398263159,1765473120539,-678.15,0.00016164,2]
[398263160,1765473120550,-765.56,0.00016164,2]
[398263161,1765473120560,-873.29,0.00016164,2]
[398263162,1765473120569,-500.0,0.00016164,2]
[398263163,1765473120579,-166.01548522,0.00016164,2]
[398263164,1765473120589,-500.0,0.00016164,2]
[398263165,1765473120599,-1017.67,0.00016164,2]
[398263166,1765473120610,-829.65,0.00016164,2]
[398263167,1765473120620,-500.0,0.00016164,2]
[398263168,1765473120629,-500.0,0.00016164,2]
[398263169,1765473120639,-500.0,0.00016164,2]
[398263170,1765473120649,-1719.24,0.00016164,2]
[398263171,1765473120659,-576.64,0.00016164,2]
[398263172,1765473120669,-500.0,0.00016164,2]
[398263173,1765473120678,-1186.27,0.00016164,2]
[398263174,1765473120688,-1255.04,0.00016164,2]
[398263175,1765473120697,-500.0,0.00016164,2]
[398263176,1765473120706,-500.0,0.00016164,2]
[398263177,1765473120715,-500.0,0.00016164,2]
[398263178,1765473120725,-1858.97,0.00016164,2]
[398263179,1765473120734,-692.35,0.00016164,2]
[398263180,1765473120744,-1482.69,0.00016164,2]
[398263181,1765473120754,-500.0,0.00016164,2]
[398263182,1765473120763,-1716.66,0.00016164,2]
[398263183,1765473120773,-3325.19,0.00016164,2]
[398263184,1765473120783,-565.52,0.00016164,2]
[398263185,1765473120792,-724.84,0.00016164,2]
[398263186,1765473120802,-500.0,0.00016164,2]
[398263187,1765473120811,-859.19,0.00016164,2]
[398263188,1765473120821,-500.0,0.00016164,2]
[398263189,1765473120831,-520.73,0.00016164,2]
[398263190,1765473120841,-1859.85,0.00016164,2]
[398263191,1765473120850,-2447.95,0.00016164,2]
[398263192,1765473120860,-1258.13,0.00016164,2]
[398263193,1765473120870,-674.1,0.00016164,2]
[398263194,1765473120879,-745.61,0.00016164,2]
[398263195,1765473120890,-933.97,0.00016164,2]
[398263196,1765473120899,-500.0,0.00016164,2]
[398263197,1765473120909,-500.0,0.00016164,2]
[398263198,1765473120918,-500.0,0.00016164,2]
[398263199,1765473120928,-617.92,0.00016164,2]
[398263200,1765473120937,-1369.84,0.00016164,2]
[398263201,1765473120947,-665.21,0.00016164,2]
[398263202,1765473120957,-500.0,0.00016164,2]
[398263203,1765473120966,-500.0,0.00016164,2]
[398263204,1765473120975,-500.0,0.00016164,2]
[398263205,1765473120987,-1527.37,0.00016164,2]
[398263206,1765473120997,-2464.33,0.00016164,2]
[398263207,1765473121007,-858.6,0.00016164,2]
[398263208,1765473121017,-575.38607504,0.00016164,2]
[398263209,1765473121028,-500.0,0.00016164,2]
[398263210,1765473121038,-2247.37,0.00016164,2]
[398263211,1765473121048,-500.0,0.00016164,2]
[398263212,1765473121058,-1279.21,0.00016164,2]
[398263213,1765473121070,-1195.79,0.00016164,2]
[398263214,1765473121080,-500.0,0.00016164,2]
[398263215,1765473121091,-874.92,0.00016164,2]
[398263216,1765473121102,-526.06,0.00016164,2]
[398263217,1765473121112,-505.47,0.00016164,2]
[398263218,1765473121122,-700.69,0.00016164,2]
[398263219,1765473121132,-681.33,0.00016164,2]
[398263220,1765473121142,-500.0,0.00016164,2]
[398263221,1765473121153,-535.74446996,0.00016164,2]
[398263222,1765473121163,-500.0,0.00016164,2]
[398263223,1765473121172,-500.0,0.00016164,2]
[398263224,1765473121182,-701.01,0.00016164,2]
[398263225,1765473121192,-500.0,0.00016164,2]
[398263226,1765473121202,-1761.69,0.00016164,2]
[398263227,1765473121211,-1576.73,0.00016164,2]
[398263228,1765473121221,-668.75,0.00016164,2]
[398263229,1765473121231,-1411.4,0.00016164,2]
[398263230,1765473121241,-500.0,0.00016164,2]
[398263231,1765473121251,-7512.92,0.00016164,2]
[398263232,1765473121261,-459.65272697,0.00016164,2]
[398263233,1765473121270,-637.83,0.00016164,2]
[398263234,1765473121279,-218.48067316,0.00016164,2]
[398263235,1765473121288,-1296.47,0.00016164,2]
[398263236,1765473121298,-1688.98,0.00016164,2]
[398263237,1765473121308,-1630.81,0.00016164,2]
[398263238,1765473121318,-647.94,0.00016164,2]
[398263239,1765473121327,-1041.06,0.00016164,2]
[398263240,1765473121337,-500.0,0.00016164,2]
[398263241,1765473121346,-1080.19,0.00016164,2]
[398263242,1765473121357,-3732.69,0.00016164,2]
[398263243,1765473121367,-803.0,0.00016164,2]
[398263244,1765473121377,-500.0,0.00016164,2]
[398263245,1765473121387,-1453.87,0.00016164,2]
[398263246,1765473121397,-1663.21,0.00016164,2]
[398263247,1765473121406,-950.4,0.00016164,2]
[398263248,1765473121416,-500.0,0.00016164,2]
[398263249,1765473121426,-1287.46,0.00016164,2]
[398263250,1765473121435,-500.0,0.00016164,2]
[398263251,1765473121445,-1595.81,0.00016164,2]
[398263252,1765473121455,-536.67,0.00016164,2]
[398263253,1765473121464,-500.0,0.00016164,2]
[398263254,1765473121474,-1030.43,0.00016164,2]
[398263255,1765473121483,-947.41,0.00016164,2]
[398263256,1765473121493,-1145.0,0.00016164,2]
[398263257,1765473121503,-610.1,0.00016164,2]
[398263258,1765473121514,-500.0,0.00016164,2]
[398263259,1765473121524,-916.72,0.00016164,2]
[398263260,1765473121534,-947.38,0.00016164,2]
[398263261,1765473121543,-603.81,0.00016164,2]
[398263262,1765473121554,-1226.34,0.00016164,2]
[398263263,1765473121564,-1501.42,0.00016164,2]
[398263264,1765473121573,-500.0,0.00016164,2]
[398263265,1765473121583,-500.0,0.00016164,2]
[398263266,1765473121593,-500.0,0.00016164,2]
[398263267,1765473121605,-1113.97,0.00016164,2]
[398263268,1765473121615,-500.0,0.00016164,2]
[398263269,1765473121625,-817.06,0.00016164,2]
[398263270,1765473121636,-982.88,0.00016164,2]
[398263271,1765473121646,-603.27,0.00016164,2]
[398263272,1765473121655,-1222.38,0.00016164,2]
[398263273,1765473121665,-3340.02,0.00016164,2]
[398263274,1765473121675,-2222.37,0.00016164,2]
[398263275,1765473121684,-1823.03,0.00016164,2]
[398263276,1765473121694,-740.93,0.00016164,2]
[398263277,1765473121704,-500.0,0.00016164,2]
[398263278,1765473121714,-500.0,0.00016164,2]
[398263279,1765473121723,-2279.37,0.00016164,2]
[398263280,1765473121732,-1319.35,0.00016164,2]
[398263281,1765473121742,-500.0,0.00016164,2]
[398263282,1765473121752,-572.55,0.00016164,2]
[398263283,1765473121762,-3595.68,0.00016164,2]
[398263284,1765473121772,-604.59,0.00016164,2]
[398263285,1765473121782,-635.56,0.00016164,2]
[398263286,1765473121792,-1128.13,0.00016164,2]
[398263287,1765473121801,-870.33,0.00016164,2]
[398263288,1765473121811,-1376.81,0.00016164,2]
[398263289,1765473121821,-500.0,0.00016164,2]
[398263290,1765473121831,-1442.81,0.00016164,2]
[398263291,1765473121840,-519.83848847,0.00016164,2]
[398263292,1765473121850,-1626.69,0.00016164,2]
[398263293,1765473121860,-2114.36,0.00016164,2]
[398263294,1765473121870,-1142.02,0.00016164,2]
[398263295,1765473121879,-1166.75,0.00016164,2]
[398263296,1765473121889,-1326.87,0.00016164,2]
[398263297,1765473121898,-1524.16,0.00016164,2]
[398263298,1765473121908,-847.25,0.00016164,2]
[398263299,1765473121919,-922.26,0.00016164,2]
[398263300,1765473121929,-820.02,0.00016164,2]
[398263301,1765473121939,-2189.83,0.00016164,2]
[398263302,1765473121948,-1088.15,0.00016164,2]
[398263303,1765473121957,-1543.6,0.00016164,2]
[398263304,1765473121967,-681.91,0.00016164,2]
[398263305,1765473121977,-500.0,0.00016164,2]
[398263306,1765473121991,-959.95,0.00016164,2]
[398263307,1765473122002,-500.0,0.00016164,2]
[398263308,1765473122012,-500.0,0.00016164,2]
[398263309,1765473122022,-500.0,0.00016164,2]
[398263310,1765473122033,-1538.57,0.00016164,2]
[398263311,1765473122043,-10671.61,0.00016164,2]
[398263312,1765473122054,-500.0,0.00016164,2]
[398263313,1765473122066,-873.52,0.00016164,2]
[398263314,1765473122076,-3357.79,0.00016164,2]
[398263315,1765473122086,-1731.33,0.00016164,2]
[398263316,1765473122097,-53416.15,0.00016164,2]
[398263317,1765473122107,-500.0,0.00016164,2]
[398263318,1765473122118,-500.0,0.00016164,2]
[398263319,1765473122128,-910.44,0.00016164,2]
[398263320,1765473122138,-619.61,0.00016164,2]
[398263321,1765473122147,-1181.33,0.00016164,2]
[398263322,1765473122158,-319.27449274,0.00016164,2]
[398263323,1765473122168,-875.86,0.00016164,2]
[398263324,1765473122178,-604.4,0.00016164,2]
[398263325,1765473122187,-630.31,0.00016164,2]
[398263326,1765473122197,-8389.15,0.00016164,2]
[398263327,1765473122207,-2523.82,0.00016164,2]
[398263328,1765473122216,-500.0,0.00016164,2]
[398263329,1765473122225,-850.25,0.00016164,2]
[398263330,1765473122235,-1104.52,0.00016164,2]
[398263331,1765473122244,-2914.61,0.00016164,2]
[398263332,1765473122254,-1148.62,0.00016164,2]
[398263333,1765473122265,-1841.97,0.00016164,2]
[398263334,1765473122275,-500.0,0.00016164,2]
[398263335,1765473122285,-500.0,0.00016164,2]
[398263336,1765473122295,-1309.83,0.00016164,2]
[398263337,1765473122304,-500.0,0.00016164,2]
[398263338,1765473122314,-1839.66,0.00016164,2]
[398263339,1765473122324,-950.55,0.00016164,2]
[398263340,1765473122334,-8048.24,0.00016164,2]
[398263341,1765473122344,-500.0,0.00016164,2]
[398263342,1765473122355,-1410.6,0.00016164,2]
[398263343,1765473122366,-1097.57,0.00016164,2]
[398263344,1765473122377,-500.0,0.00016164,2]
[398263345,1765473122387,-500.0,0.00016164,2]
[398263346,1765473122397,-2081.19,0.00016164,2]
[398263347,1765473122408,-1191.31,0.00016164,2]
[398263348,1765473122418,-1560.76,0.00016164,2]
[398263349,1765473122429,-887.69,0.00016164,2]
[398263350,1765473122439,-987.32,0.00016164,2]
[398263351,1765473122449,-5938.55,0.00016164,2]
[398263352,1765473122459,-5007.32,0.00016164,2]
[398263353,1765473122470,-1973.08,0.00016164,2]
[398263354,1765473122479,-2136.22,0.00016164,2]
[398263355,1765473122489,-2066.71,0.00016164,2]
[398263356,1765473122499,-500.0,0.00016164,2]
[398263357,1765473122509,-2108.49,0.00016164,2]
[398263358,1765473122518,-500.0,0.00016164,2]
[398263359,1765473122527,-500.0,0.00016164,2]
[398263360,1765473122537,-990.15,0.00016164,2]
[398263361,1765473122547,-17849.44,0.00016164,2]
[398263362,1765473122556,-500.0,0.00016164,2]
[398263363,1765473122566,-3449.92,0.00016164,2]
[398263364,1765473122733,-500.0,0.00016164,2]
[398263365,1765473122767,-1798.0,0.00016164,2]
[398263366,1765473122777,-4118.34,0.00016164,2]
[398263367,1765473122787,-830.5,0.00016164,2]
[398263368,1765473122796,-500.0,0.00016164,2]
[398263369,1765473122806,-910.39,0.00016164,2]
[398263370,1765473122815,-500.0,0.00016164,2]
[398263371,1765473122825,-15811.29,0.00016164,2]
[398263372,1765473122835,-862.37,0.00016164,2]
[398263373,1765473122845,-602.31,0.00016164,2]
[398263374,1765473122855,-525.88,0.00016164,2]
[398263375,1765473122865,-788.03,0.00016164,2]
[398263376,1765473122875,-2726.54,0.00016164,2]
[398263377,1765473122884,-500.0,0.00016164,2]
[398263378,1765473122894,-500.0,0.00016164,2]
[398263379,1765473122903,-500.0,0.00016164,2]
[398263380,1765473122913,-1792.08,0.00016164,2]
[398263381,1765473122923,-500.0,0.00016164,2]
[398263382,1765473122932,-500.0,0.00016164,2]
[398263383,1765473122941,-648.27,0.00016164,2]
[398263384,1765473122950,-500.0,0.00016164,2]
[398263385,1765473122961,-1464.86,0.00016164,2]
[398263386,1765473122970,-500.0,0.00016164,2]
[398263387,1765473122980,-669.48,0.00016164,2]
[398263388,1765473122994,-2489.03,0.00016164,2]
[398263389,1765473123003,-979.89,0.00016164,2]
[398263390,1765473123013,-2319.1,0.00016164,2]
[398263391,1765473123022,-8021.34,0.00016164,2]
[398263392,1765473123033,-1059.6,0.00016164,2]
[398263393,1765473123043,-748.3,0.00016164,2]
[398263394,1765473123052,-500.0,0.00016164,2]
[398263395,1765473123062,-500.0,0.00016164,2]
[398263396,1765473123073,-521.79,0.00016164,2]
[398263397,1765473123083,-758.49,0.00016164,2]
[398263398,1765473123092,-500.0,0.00016164,2]
[398263399,1765473123102,-500.0,0.00016164,2]
[398263400,1765473123112,-3194.33,0.00016164,2]
[398263401,1765473123121,-1602.59,0.00016164,2]
[398263402,1765473123131,-526.42,0.00016164,2]
[398263403,1765473123141,-1033.03,0.00016164,2]
[398263404,1765473123151,-500.0,0.00016164,2]
[398263405,1765473123161,-500.0,0.00016164,2]
[398263406,1765473123170,-1427.04,0.00016164,2]
[398263407,1765473123180,-1182.82,0.00016164,2]
[398263408,1765473123189,-503.81,0.00016164,2]
[398263409,1765473123198,-2357.55,0.00016164,2]
[398263410,1765473123208,-2241.56,0.00016164,2]
[398263411,1765473123217,-746.51,0.00016164,2]
[398263412,1765473123229,-502.94,0.00016164,2]
[398263413,1765473123239,-2477.03,0.00016164,2]
[398263414,1765473123249,-16159.61,0.00016164,2]
[398263415,1765473123259,-500.0,0.00016164,2]
[398263416,1765473123268,-1020.46,0.00016164,2]